[Event "Early-Titled-Tuesday-Blitz-April-23-2024"]
[Site "Chess.com"]
[Date "2024.04.23"]
[Round "1"]
[White "Anton_Demchenko"]
[Black "DeArron_Fox"]
[Result "1-0"]
[WhiteElo "2970"]
[BlackElo "2535"]
[TimeControl "180+1"]
[EndTime "8:05:59 PDT"]
[Termination "Anton_Demchenko won by resignation"]

1. e4 {[%clk 0:02:56.6]} 1... c5 {[%clk 0:02:53.7]} 2. Nf3 {[%clk 0:02:54.7]}
2... e6 {[%clk 0:02:51.4]} 3. d4 {[%clk 0:02:50]} 3... cxd4 {[%clk 0:02:52.3]}
4. Nxd4 {[%clk 0:02:50.5]} 4... a6 {[%clk 0:02:48.1]} 5. Bd3 {[%clk 0:02:50]}
5... Bc5 {[%clk 0:02:45.5]} 6. Nb3 {[%clk 0:02:49.8]} 6... Ba7 {[%clk
0:02:46.1]} 7. Qe2 {[%clk 0:02:50.3]} 7... Ne7 {[%clk 0:02:46]} 8. Be3 {[%clk
0:02:48.9]} 8... O-O {[%clk 0:02:46.3]} 9. Bxa7 {[%clk 0:02:45.7]} 9... Rxa7
{[%clk 0:02:47.2]} 10. N1d2 {[%clk 0:02:46]} 10... Nbc6 {[%clk 0:02:19.7]} 11.
c3 {[%clk 0:02:45.8]} 11... b5 {[%clk 0:02:12]} 12. O-O {[%clk 0:02:44.6]} 12...
Bb7 {[%clk 0:01:54.5]} 13. Rad1 {[%clk 0:02:31.6]} 13... Qc7 {[%clk 0:01:24.2]}
14. Qe3 {[%clk 0:02:29.9]} 14... Raa8 {[%clk 0:01:09.4]} 15. Qh3 {[%clk
0:02:07.3]} 15... Ng6 {[%clk 0:00:58.3]} 16. Bb1 {[%clk 0:01:57.3]} 16... Nce5
{[%clk 0:00:28.4]} 17. Nd4 {[%clk 0:01:33.7]} 17... d5 {[%clk 0:00:07.8]} 18. f4
{[%clk 0:01:26.1]} 18... Nc6 {[%clk 0:00:07.8]} 19. f5 {[%clk 0:01:16]} 19...
Nge5 {[%clk 0:00:02.2]} 20. fxe6 {[%clk 0:01:13.8]} 20... Nxd4 {[%clk
0:00:02.7]} 21. cxd4 {[%clk 0:01:10.4]} 21... Qb6 {[%clk 0:00:03]} 22. exd5
{[%clk 0:01:05.6]} 22... g6 {[%clk 0:00:02.6]} 23. Ne4 {[%clk 0:01:00.8]} 23...
Bxd5 {[%clk 0:00:02.4]} 24. Nf6+ {[%clk 0:01:00.7]} 1-0

[Event "Early-Titled-Tuesday-Blitz-April-23-2024"]
[Site "Chess.com"]
[Date "2024.04.23"]
[Round "1"]
[White "rhungaski"]
[Black "crescentmoon2411"]
[Result "0-1"]
[WhiteElo "2515"]
[BlackElo "2907"]
[TimeControl "180+1"]
[EndTime "8:06:01 PDT"]
[Termination "crescentmoon2411 won by resignation"]

1. b3 {[%clk 0:03:00.9]} 1... e5 {[%clk 0:02:58.5]} 2. Bb2 {[%clk 0:02:59.7]}
2... Nc6 {[%clk 0:02:59.3]} 3. c4 {[%clk 0:02:59.7]} 3... Bc5 {[%clk 0:02:59.4]}
4. e3 {[%clk 0:02:54.2]} 4... d6 {[%clk 0:02:59.9]} 5. Nc3 {[%clk 0:02:46.2]}
5... Nf6 {[%clk 0:02:59.4]} 6. a3 {[%clk 0:02:38.7]} 6... a6 {[%clk 0:02:59.1]}
7. Nge2 {[%clk 0:02:38.5]} 7... O-O {[%clk 0:02:59.2]} 8. b4 {[%clk 0:02:34.8]}
8... Ba7 {[%clk 0:02:57.3]} 9. Qc2 {[%clk 0:02:23.5]} 9... Re8 {[%clk
0:02:55.7]} 10. Ng3 {[%clk 0:02:18.7]} 10... h5 {[%clk 0:02:06.9]} 11. Bd3
{[%clk 0:02:12.7]} 11... h4 {[%clk 0:02:05.6]} 12. Nge4 {[%clk 0:02:11.9]} 12...
Nxe4 {[%clk 0:02:00.9]} 13. Bxe4 {[%clk 0:02:05.9]} 13... Ne7 {[%clk 0:01:57]}
14. g4 {[%clk 0:01:48.8]} 14... c6 {[%clk 0:01:54.3]} 15. Rg1 {[%clk 0:01:31.8]}
15... d5 {[%clk 0:01:53.9]} 16. Bh7+ {[%clk 0:01:23.9]} 16... Kh8 {[%clk
0:01:53.6]} 17. Bf5 {[%clk 0:00:42.9]} 17... Nxf5 {[%clk 0:01:49]} 18. gxf5
{[%clk 0:00:43.8]} 18... Qf6 {[%clk 0:01:49.4]} 19. cxd5 {[%clk 0:00:42.8]}
19... Bxf5 {[%clk 0:01:47.7]} 20. Qb3 {[%clk 0:00:41.6]} 20... Red8 {[%clk
0:01:38.5]} 21. dxc6 {[%clk 0:00:40.5]} 21... bxc6 {[%clk 0:01:31]} 22. Qc4
{[%clk 0:00:36.7]} 22... Bg6 {[%clk 0:01:23.8]} 23. Qg4 {[%clk 0:00:30]} 23...
Rxd2 {[%clk 0:01:16.8]} 24. Kxd2 {[%clk 0:00:28.3]} 24... Qxf2+ {[%clk 0:01:15]}
25. Ne2 {[%clk 0:00:17.7]} 25... Qxe3+ {[%clk 0:01:10.8]} 26. Ke1 {[%clk
0:00:17.8]} 26... Qf2+ {[%clk 0:01:11.1]} 27. Kd1 {[%clk 0:00:15.8]} 27... Rd8+
{[%clk 0:01:11.1]} 28. Bd4 {[%clk 0:00:14.1]} 28... Bxd4 {[%clk 0:01:10.7]} 0-1

[Event "Early-Titled-Tuesday-Blitz-April-23-2024"]
[Site "Chess.com"]
[Date "2024.04.23"]
[Round "1"]
[White "lamomiajunior"]
[Black "JoliyRoger"]
[Result "1-0"]
[WhiteElo "2734"]
[BlackElo "2413"]
[TimeControl "180+1"]
[EndTime "8:06:01 PDT"]
[Termination "lamomiajunior won on time"]

1. d4 {[%clk 0:03:00.9]} 1... Nf6 {[%clk 0:02:45.4]} 2. Nc3 {[%clk 0:03:00.9]}
2... d5 {[%clk 0:02:42.6]} 3. Bf4 {[%clk 0:03:01.1]} 3... c6 {[%clk 0:02:32.7]}
4. e3 {[%clk 0:03:00.6]} 4... Bf5 {[%clk 0:02:28.5]} 5. f3 {[%clk 0:03:00.7]}
5... e6 {[%clk 0:02:20.9]} 6. g4 {[%clk 0:03:00.5]} 6... Bg6 {[%clk 0:02:15.6]}
7. h4 {[%clk 0:03:00.8]} 7... h5 {[%clk 0:02:15.4]} 8. g5 {[%clk 0:03:01.2]}
8... Ng8 {[%clk 0:02:08.5]} 9. Qd2 {[%clk 0:03:00.2]} 9... Bb4 {[%clk
0:02:02.1]} 10. a3 {[%clk 0:02:59.9]} 10... Bd6 {[%clk 0:01:56.9]} 11. Nh3
{[%clk 0:02:59.9]} 11... Ne7 {[%clk 0:01:55.5]} 12. e4 {[%clk 0:02:59.6]} 12...
dxe4 {[%clk 0:01:44]} 13. fxe4 {[%clk 0:02:59.8]} 13... Bxf4 {[%clk 0:01:35.5]}
14. Nxf4 {[%clk 0:03:00.7]} 14... e5 {[%clk 0:01:34.5]} 15. dxe5 {[%clk
0:03:00.7]} 15... Qxd2+ {[%clk 0:01:33.1]} 16. Kxd2 {[%clk 0:03:01.6]} 16... Nd7
{[%clk 0:01:28.3]} 17. e6 {[%clk 0:03:01.9]} 17... Ne5 {[%clk 0:01:26]} 18.
exf7+ {[%clk 0:03:01.3]} 18... Kxf7 {[%clk 0:01:24.4]} 19. Be2 {[%clk
0:03:01.6]} 19... Rhd8+ {[%clk 0:01:23.9]} 20. Ke3 {[%clk 0:03:02.1]} 20... Re8
{[%clk 0:01:13.2]} 21. Rhf1 {[%clk 0:03:01.6]} 21... Kg8 {[%clk 0:01:12.1]} 22.
Rad1 {[%clk 0:02:59.1]} 22... Bf7 {[%clk 0:01:02.6]} 23. Nxh5 {[%clk 0:02:48.2]}
23... N7g6 {[%clk 0:00:55.8]} 24. Nf4 {[%clk 0:02:41.6]} 24... Nxh4 {[%clk
0:00:54.7]} 25. b3 {[%clk 0:02:37]} 25... Re7 {[%clk 0:00:47.9]} 26. Rh1 {[%clk
0:02:23.1]} 26... Nhg6 {[%clk 0:00:46.6]} 27. Nxg6 {[%clk 0:02:20.3]} 27... Bxg6
{[%clk 0:00:44]} 28. Rd6 {[%clk 0:02:16.7]} 28... Rae8 {[%clk 0:00:35.2]} 29.
Rhd1 {[%clk 0:02:16.6]} 29... Bf7 {[%clk 0:00:26.4]} 30. a4 {[%clk 0:02:15]}
30... a5 {[%clk 0:00:24.2]} 31. Kd4 {[%clk 0:02:05.5]} 31... Nd7 {[%clk
0:00:14.3]} 32. g6 {[%clk 0:01:48.7]} 32... Be6 {[%clk 0:00:09.4]} 33. Bc4
{[%clk 0:01:35.3]} 1-0

[Event "Early-Titled-Tuesday-Blitz-April-23-2024"]
[Site "Chess.com"]
[Date "2024.04.23"]
[Round "1"]
[White "ChinguunSu"]
[Black "mapleaff"]
[Result "1-0"]
[WhiteElo "2616"]
[BlackElo "2248"]
[TimeControl "180+1"]
[EndTime "8:06:02 PDT"]
[Termination "ChinguunSu won by resignation"]

1. e4 {[%clk 0:02:58.5]} 1... c5 {[%clk 0:01:26.1]} 2. Nf3 {[%clk 0:02:56.4]}
2... Nc6 {[%clk 0:01:11.1]} 3. d4 {[%clk 0:02:55.2]} 3... cxd4 {[%clk 0:01:11]}
4. Nxd4 {[%clk 0:02:55.7]} 4... e5 {[%clk 0:01:08.5]} 5. Nb5 {[%clk 0:02:55.9]}
5... d6 {[%clk 0:01:06.5]} 6. N1c3 {[%clk 0:02:55.9]} 6... a6 {[%clk 0:01:06.9]}
7. Na3 {[%clk 0:02:56.2]} 7... Be6 {[%clk 0:01:02.2]} 8. Nd5 {[%clk 0:02:52.3]}
8... Bxd5 {[%clk 0:01:01.5]} 9. exd5 {[%clk 0:02:51.9]} 9... Nce7 {[%clk
0:01:02]} 10. c4 {[%clk 0:02:51.8]} 10... Nf6 {[%clk 0:01:01.4]} 11. g3 {[%clk
0:02:52.1]} 11... Rc8 {[%clk 0:00:59]} 12. Bg2 {[%clk 0:02:52.1]} 12... g6
{[%clk 0:00:58.9]} 13. O-O {[%clk 0:02:52.1]} 13... Bg7 {[%clk 0:00:59.2]} 14.
b4 {[%clk 0:02:52.2]} 14... O-O {[%clk 0:00:59.1]} 15. Be3 {[%clk 0:02:48.4]}
15... Nd7 {[%clk 0:00:54.1]} 16. c5 {[%clk 0:02:44.9]} 16... dxc5 {[%clk
0:00:45]} 17. d6 {[%clk 0:02:43.2]} 17... Nf5 {[%clk 0:00:38]} 18. Bxb7 {[%clk
0:02:35.2]} 18... Nxe3 {[%clk 0:00:34]} 19. fxe3 {[%clk 0:02:33.4]} 19... Rb8
{[%clk 0:00:31.2]} 20. Bxa6 {[%clk 0:02:31.8]} 20... cxb4 {[%clk 0:00:30.6]} 21.
Nc2 {[%clk 0:02:31.5]} 21... Qb6 {[%clk 0:00:27.2]} 22. Bc4 {[%clk 0:02:31.1]}
22... Rbc8 {[%clk 0:00:25.2]} 23. Bb3 {[%clk 0:02:30.4]} 23... e4 {[%clk
0:00:22.5]} 24. Rc1 {[%clk 0:02:23.3]} 24... Ne5 {[%clk 0:00:19.1]} 25. Nd4
{[%clk 0:02:22.4]} 25... Nd3 {[%clk 0:00:16.2]} 26. Rxc8 {[%clk 0:02:18.8]}
26... Rxc8 {[%clk 0:00:17.1]} 27. Rxf7 {[%clk 0:02:18.1]} 27... Kh8 {[%clk
0:00:17.3]} 28. d7 {[%clk 0:02:16.8]} 28... Rc1 {[%clk 0:00:15.9]} 29. Qxc1
{[%clk 0:02:14.3]} 29... Nxc1 {[%clk 0:00:16.8]} 30. Rxg7 {[%clk 0:01:58]} 30...
Kxg7 {[%clk 0:00:14.4]} 31. d8=Q {[%clk 0:01:57.3]} 31... Qxd8 {[%clk
0:00:13.7]} 32. Ne6+ {[%clk 0:01:56.8]} 32... Kf6 {[%clk 0:00:13.9]} 33. Nxd8
{[%clk 0:01:56.5]} 33... Ke7 {[%clk 0:00:11.1]} 34. Nc6+ {[%clk 0:01:56.5]}
34... Kd6 {[%clk 0:00:11.4]} 35. Nxb4 {[%clk 0:01:56.7]} 35... Ke5 {[%clk
0:00:11.4]} 36. Nc2 {[%clk 0:01:56.7]} 36... Nd3 {[%clk 0:00:10.8]} 37. Kf1
{[%clk 0:01:56.1]} 37... h5 {[%clk 0:00:10.3]} 38. Ke2 {[%clk 0:01:56.1]} 38...
g5 {[%clk 0:00:10.7]} 39. Bc4 {[%clk 0:01:55.1]} 39... Nc5 {[%clk 0:00:10.1]}
40. Nd4 {[%clk 0:01:55]} 40... Na4 {[%clk 0:00:10.1]} 41. Bb3 {[%clk 0:01:52.6]}
41... Nc3+ {[%clk 0:00:09.5]} 42. Kd2 {[%clk 0:01:52.7]} 1-0

[Event "Early-Titled-Tuesday-Blitz-April-23-2024"]
[Site "Chess.com"]
[Date "2024.04.23"]
[Round "1"]
[White "Antosha_Chekhonte"]
[Black "wonderfultime"]
[Result "0-1"]
[WhiteElo "2544"]
[BlackElo "3057"]
[TimeControl "180+1"]
[EndTime "8:06:03 PDT"]
[Termination "wonderfultime won by resignation"]

1. e4 {[%clk 0:03:00.9]} 1... e5 {[%clk 0:02:55.8]} 2. Nf3 {[%clk 0:03:00.7]}
2... Nc6 {[%clk 0:02:46.1]} 3. Nc3 {[%clk 0:03:01]} 3... Nf6 {[%clk 0:02:44.1]}
4. d4 {[%clk 0:03:00.9]} 4... Bb4 {[%clk 0:02:43.6]} 5. Nxe5 {[%clk 0:02:59.5]}
5... O-O {[%clk 0:02:39.4]} 6. Qd3 {[%clk 0:02:02]} 6... Re8 {[%clk 0:02:23.2]}
7. f3 {[%clk 0:01:55.2]} 7... d5 {[%clk 0:02:14.3]} 8. Nxc6 {[%clk 0:01:46.1]}
8... bxc6 {[%clk 0:02:04.3]} 9. e5 {[%clk 0:01:46.4]} 9... c5 {[%clk 0:02:04.9]}
10. a3 {[%clk 0:00:59.5]} 10... Ba5 {[%clk 0:01:56.7]} 11. b4 {[%clk 0:00:31.8]}
11... cxb4 {[%clk 0:01:54.8]} 12. Ne2 {[%clk 0:00:25.9]} 12... Nd7 {[%clk
0:01:51.4]} 13. Bd2 {[%clk 0:00:23.2]} 13... c5 {[%clk 0:01:50.7]} 14. axb4
{[%clk 0:00:21.8]} 14... cxb4 {[%clk 0:01:39.3]} 15. Qb5 {[%clk 0:00:21.8]}
15... Rb8 {[%clk 0:01:32.9]} 16. Qxa5 {[%clk 0:00:20.9]} 16... Nb6 {[%clk
0:01:26.2]} 17. Kf2 {[%clk 0:00:19.5]} 17... Bf5 {[%clk 0:01:25.9]} 18. Ra2
{[%clk 0:00:17.3]} 18... Rc8 {[%clk 0:01:21.8]} 19. Ng3 {[%clk 0:00:17.1]} 19...
Qh4 {[%clk 0:01:21.3]} 20. Ba6 {[%clk 0:00:15.9]} 20... Nc4 {[%clk 0:01:14.8]}
21. Bxc4 {[%clk 0:00:15.1]} 21... Rxc4 {[%clk 0:01:15.7]} 22. Be3 {[%clk
0:00:14.8]} 22... Rec8 {[%clk 0:01:13]} 23. Re1 {[%clk 0:00:13.3]} 23... Bxc2
{[%clk 0:01:10]} 24. Qxd5 {[%clk 0:00:12.3]} 24... Bb3 {[%clk 0:01:09.1]} 25.
Rb2 {[%clk 0:00:11.7]} 25... Rc2+ {[%clk 0:01:09.3]} 26. Rxc2 {[%clk 0:00:12.1]}
26... Rxc2+ {[%clk 0:01:10.2]} 0-1

[Event "Early-Titled-Tuesday-Blitz-April-23-2024"]
[Site "Chess.com"]
[Date "2024.04.23"]
[Round "1"]
[White "NovozhilovSemen"]
[Black "MikhailBLR"]
[Result "1-0"]
[WhiteElo "2640"]
[BlackElo "2320"]
[TimeControl "180+1"]
[EndTime "8:06:03 PDT"]
[Termination "NovozhilovSemen won by resignation"]

1. d4 {[%clk 0:02:55.3]} 1... e5 {[%clk 0:02:59]} 2. dxe5 {[%clk 0:02:55]} 2...
d6 {[%clk 0:02:59.2]} 3. exd6 {[%clk 0:02:49.4]} 3... Bxd6 {[%clk 0:03:00.1]} 4.
Nc3 {[%clk 0:02:46.3]} 4... Nc6 {[%clk 0:02:58]} 5. e4 {[%clk 0:02:45.9]} 5...
Qe7 {[%clk 0:02:54.5]} 6. Bd3 {[%clk 0:02:43.6]} 6... Nf6 {[%clk 0:02:49.6]} 7.
Nge2 {[%clk 0:02:41.7]} 7... Bg4 {[%clk 0:02:47.4]} 8. f3 {[%clk 0:02:40.9]}
8... Bh5 {[%clk 0:02:47.4]} 9. Bf4 {[%clk 0:02:36.8]} 9... O-O-O {[%clk
0:02:46]} 10. Bxd6 {[%clk 0:02:35.9]} 10... Rxd6 {[%clk 0:02:38.5]} 11. Qd2
{[%clk 0:02:36.2]} 11... Rhd8 {[%clk 0:02:33.6]} 12. O-O-O {[%clk 0:02:34.9]}
12... Nb4 {[%clk 0:02:22.6]} 13. Nf4 {[%clk 0:02:26]} 13... Bg6 {[%clk
0:02:17.4]} 14. Rhe1 {[%clk 0:02:21.3]} 14... Nxd3+ {[%clk 0:02:15.1]} 15. cxd3
{[%clk 0:02:18.6]} 15... Nd7 {[%clk 0:02:05.8]} 16. d4 {[%clk 0:02:11.8]} 16...
Nb6 {[%clk 0:02:00.8]} 17. d5 {[%clk 0:01:58.7]} 17... Qe5 {[%clk 0:01:53.4]}
18. Nxg6 {[%clk 0:01:57.4]} 18... hxg6 {[%clk 0:01:50]} 19. f4 {[%clk
0:01:57.7]} 19... Qh5 {[%clk 0:01:40.7]} 20. h3 {[%clk 0:01:46.3]} 20... f6
{[%clk 0:01:20.6]} 21. b3 {[%clk 0:01:40.6]} 21... c6 {[%clk 0:01:15.7]} 22. e5
{[%clk 0:01:34.1]} 22... fxe5 {[%clk 0:01:10.1]} 23. fxe5 {[%clk 0:01:33.7]}
23... Rxd5 {[%clk 0:00:52.7]} 24. Nxd5 {[%clk 0:01:32]} 24... Rxd5 {[%clk
0:00:51.5]} 25. Qf4 {[%clk 0:01:27.7]} 25... Qh6 {[%clk 0:00:26.4]} 26. Qxh6
{[%clk 0:01:11.3]} 26... gxh6 {[%clk 0:00:26.3]} 27. Rxd5 {[%clk 0:01:12]} 27...
Nxd5 {[%clk 0:00:26.1]} 28. Rf1 {[%clk 0:01:12.7]} 28... Kd7 {[%clk 0:00:22.2]}
29. Rf7+ {[%clk 0:01:13.3]} 29... Ke6 {[%clk 0:00:22.8]} 30. Rxb7 {[%clk
0:01:13]} 30... Kxe5 {[%clk 0:00:22.6]} 31. Rxa7 {[%clk 0:01:13.2]} 31... Ne3
{[%clk 0:00:20.2]} 32. g4 {[%clk 0:01:12.5]} 32... h5 {[%clk 0:00:17.4]} 33.
gxh5 {[%clk 0:01:13.4]} 33... gxh5 {[%clk 0:00:17.7]} 34. Rh7 {[%clk 0:01:14.1]}
1-0

[Event "Early-Titled-Tuesday-Blitz-April-23-2024"]
[Site "Chess.com"]
[Date "2024.04.23"]
[Round "1"]
[White "SchmakAttack"]
[Black "Mihaiionescu1"]
[Result "1-0"]
[WhiteElo "2835"]
[BlackElo "2474"]
[TimeControl "180+1"]
[EndTime "8:06:05 PDT"]
[Termination "SchmakAttack won by checkmate"]

1. e4 {[%clk 0:03:00.9]} 1... c5 {[%clk 0:02:54.3]} 2. Nf3 {[%clk 0:02:59.9]}
2... d6 {[%clk 0:02:52.5]} 3. d4 {[%clk 0:02:59.8]} 3... cxd4 {[%clk 0:02:51.3]}
4. Nxd4 {[%clk 0:03:00.7]} 4... Nf6 {[%clk 0:02:48.3]} 5. Nc3 {[%clk 0:03:00.8]}
5... g6 {[%clk 0:02:47.9]} 6. Be3 {[%clk 0:02:55.2]} 6... Bg7 {[%clk 0:02:47.1]}
7. f3 {[%clk 0:02:55.7]} 7... a6 {[%clk 0:02:44.6]} 8. Qd2 {[%clk 0:02:48.6]}
8... h5 {[%clk 0:02:44.3]} 9. Bc4 {[%clk 0:02:39.8]} 9... Nbd7 {[%clk
0:02:32.1]} 10. O-O {[%clk 0:02:28.9]} 10... Qc7 {[%clk 0:02:25.8]} 11. Bb3
{[%clk 0:02:27.8]} 11... b6 {[%clk 0:02:25]} 12. Rfe1 {[%clk 0:02:10.5]} 12...
Bb7 {[%clk 0:02:22.4]} 13. Nd5 {[%clk 0:02:09.7]} 13... Nxd5 {[%clk 0:02:20.5]}
14. exd5 {[%clk 0:02:10.1]} 14... Nc5 {[%clk 0:01:58.9]} 15. Bg5 {[%clk
0:02:04.3]} 15... f6 {[%clk 0:01:40.5]} 16. Bf4 {[%clk 0:02:03.6]} 16... Nxb3
{[%clk 0:01:27.7]} 17. axb3 {[%clk 0:01:56.8]} 17... Bxd5 {[%clk 0:01:02.6]} 18.
Nf5 {[%clk 0:01:37]} 18... gxf5 {[%clk 0:00:55.4]} 19. Qxd5 {[%clk 0:01:36.8]}
19... O-O-O {[%clk 0:00:24.3]} 20. Rxa6 {[%clk 0:01:21.7]} 20... Kd7 {[%clk
0:00:08.2]} 21. Qb5+ {[%clk 0:01:01.1]} 21... Kc8 {[%clk 0:00:03.5]} 22. Ra8+
{[%clk 0:00:58]} 22... Kb7 {[%clk 0:00:03.6]} 23. Qd5+ {[%clk 0:00:58.6]} 23...
Qc6 {[%clk 0:00:03.5]} 24. Ra7+ {[%clk 0:00:59.1]} 24... Kxa7 {[%clk 0:00:02.8]}
25. Qxc6 {[%clk 0:00:59.7]} 25... Rc8 {[%clk 0:00:03.7]} 26. Rxe7+ {[%clk
0:00:59.4]} 26... Kb8 {[%clk 0:00:03.5]} 27. Qb7# {[%clk 0:00:59.8]} 1-0

[Event "Early-Titled-Tuesday-Blitz-April-23-2024"]
[Site "Chess.com"]
[Date "2024.04.23"]
[Round "1"]
[White "M1711"]
[Black "conformalfunction"]
[Result "1/2-1/2"]
[WhiteElo "2700"]
[BlackElo "2406"]
[TimeControl "180+1"]
[EndTime "8:06:05 PDT"]
[Termination "Game drawn by repetition"]

1. e4 {[%clk 0:03:00.9]} 1... e6 {[%clk 0:02:51]} 2. d4 {[%clk 0:02:58.6]} 2...
d5 {[%clk 0:02:48.9]} 3. Nc3 {[%clk 0:02:59.5]} 3... Bb4 {[%clk 0:02:49.2]} 4.
Bd3 {[%clk 0:02:56.6]} 4... Nf6 {[%clk 0:02:35.2]} 5. e5 {[%clk 0:02:53.5]} 5...
Nfd7 {[%clk 0:02:25.4]} 6. Nf3 {[%clk 0:02:50.2]} 6... c5 {[%clk 0:02:20.3]} 7.
dxc5 {[%clk 0:02:47.6]} 7... Nxc5 {[%clk 0:02:15.8]} 8. O-O {[%clk 0:02:46]}
8... Nxd3 {[%clk 0:02:13.4]} 9. cxd3 {[%clk 0:02:37.8]} 9... Nc6 {[%clk
0:02:08.5]} 10. d4 {[%clk 0:02:37]} 10... b6 {[%clk 0:02:04.9]} 11. Bg5 {[%clk
0:02:34.9]} 11... Qd7 {[%clk 0:02:01.7]} 12. Nb5 {[%clk 0:02:20.6]} 12... h6
{[%clk 0:01:55.1]} 13. Bd2 {[%clk 0:02:19.5]} 13... Be7 {[%clk 0:01:51.5]} 14.
Rc1 {[%clk 0:02:19]} 14... Ba6 {[%clk 0:01:47.7]} 15. Qa4 {[%clk 0:02:18.9]}
15... Bxb5 {[%clk 0:01:42.8]} 16. Qxb5 {[%clk 0:02:18.5]} 16... Nxe5 {[%clk
0:01:40.5]} 17. Qe2 {[%clk 0:02:18.4]} 17... Nxf3+ {[%clk 0:01:35.6]} 18. Qxf3
{[%clk 0:02:19.3]} 18... O-O {[%clk 0:01:16]} 19. g3 {[%clk 0:02:07.8]} 19...
Rfc8 {[%clk 0:01:14]} 20. Rcd1 {[%clk 0:02:07.8]} 20... Rc4 {[%clk 0:01:01.7]}
21. Be3 {[%clk 0:02:02]} 21... Rac8 {[%clk 0:00:48]} 22. h4 {[%clk 0:02:01]}
22... Rc2 {[%clk 0:00:45.8]} 23. Rb1 {[%clk 0:01:55.6]} 23... Bd6 {[%clk
0:00:45.2]} 24. Qg4 {[%clk 0:01:54.4]} 24... Kh8 {[%clk 0:00:41.8]} 25. Qh5
{[%clk 0:01:53.4]} 25... Qe7 {[%clk 0:00:41]} 26. Kg2 {[%clk 0:01:44.6]} 26...
Qf6 {[%clk 0:00:41.3]} 27. Qg4 {[%clk 0:01:42.3]} 27... Kh7 {[%clk 0:00:36.9]}
28. a3 {[%clk 0:01:36]} 28... g6 {[%clk 0:00:36.7]} 29. Qd1 {[%clk 0:01:30.2]}
29... b5 {[%clk 0:00:36.5]} 30. Rc1 {[%clk 0:01:28.1]} 30... Qf5 {[%clk
0:00:35.3]} 31. Rb1 {[%clk 0:01:21.2]} 31... a6 {[%clk 0:00:34.7]} 32. Re1
{[%clk 0:01:11.5]} 32... Qe4+ {[%clk 0:00:34.4]} 33. Kh3 {[%clk 0:01:06.2]}
33... Qf5+ {[%clk 0:00:33.6]} 34. Kg2 {[%clk 0:01:05.6]} 34... Qf6 {[%clk
0:00:33.7]} 35. Rc1 {[%clk 0:00:57.7]} 35... Qf5 {[%clk 0:00:33.8]} 36. Rb1
{[%clk 0:00:54.8]} 1/2-1/2

[Event "Early-Titled-Tuesday-Blitz-April-23-2024"]
[Site "Chess.com"]
[Date "2024.04.23"]
[Round "1"]
[White "mortngabriel"]
[Black "FXDon77"]
[Result "0-1"]
[WhiteElo "2486"]
[BlackElo "2857"]
[TimeControl "180+1"]
[EndTime "8:06:07 PDT"]
[Termination "FXDon77 won by checkmate"]

1. d4 {[%clk 0:02:58.4]} 1... Nf6 {[%clk 0:02:59.9]} 2. Nf3 {[%clk 0:02:57.4]}
2... d5 {[%clk 0:02:59.6]} 3. c4 {[%clk 0:02:57.2]} 3... e6 {[%clk 0:02:59.2]}
4. Nc3 {[%clk 0:02:57.2]} 4... h6 {[%clk 0:02:53.7]} 5. cxd5 {[%clk 0:02:55.5]}
5... exd5 {[%clk 0:02:53.4]} 6. Bf4 {[%clk 0:02:55.4]} 6... Bd6 {[%clk
0:02:52.8]} 7. Bxd6 {[%clk 0:02:54.8]} 7... Qxd6 {[%clk 0:02:53.4]} 8. e3 {[%clk
0:02:55.5]} 8... O-O {[%clk 0:02:53]} 9. Bd3 {[%clk 0:02:55.8]} 9... Bg4 {[%clk
0:02:51.4]} 10. Qc2 {[%clk 0:02:50.2]} 10... Bxf3 {[%clk 0:02:49.5]} 11. gxf3
{[%clk 0:02:51.1]} 11... c6 {[%clk 0:02:49.7]} 12. O-O-O {[%clk 0:02:45.6]}
12... Nbd7 {[%clk 0:02:45.7]} 13. Kb1 {[%clk 0:02:45.3]} 13... a5 {[%clk
0:02:44.3]} 14. Rdg1 {[%clk 0:02:24]} 14... b5 {[%clk 0:02:42.8]} 15. Rg2 {[%clk
0:02:15.4]} 15... a4 {[%clk 0:02:37.9]} 16. Rhg1 {[%clk 0:02:13.7]} 16... Ne8
{[%clk 0:02:38.5]} 17. Ne2 {[%clk 0:01:45.7]} 17... b4 {[%clk 0:02:34.2]} 18.
Qd2 {[%clk 0:01:40]} 18... a3 {[%clk 0:02:26.8]} 19. b3 {[%clk 0:01:39.9]} 19...
c5 {[%clk 0:02:27.2]} 20. Ng3 {[%clk 0:01:05.5]} 20... Kh8 {[%clk 0:02:17.5]}
21. Nf5 {[%clk 0:01:02.5]} 21... Qf6 {[%clk 0:02:17.9]} 22. Nxg7 {[%clk
0:00:54]} 22... Nxg7 {[%clk 0:02:16.3]} 23. Rxg7 {[%clk 0:00:54.2]} 23... Qxg7
{[%clk 0:02:12.8]} 24. Rxg7 {[%clk 0:00:55.1]} 24... Kxg7 {[%clk 0:02:10.1]} 25.
Bf5 {[%clk 0:00:53.9]} 25... Nf6 {[%clk 0:01:58.9]} 26. dxc5 {[%clk 0:00:53.4]}
26... d4 {[%clk 0:01:57.8]} 27. exd4 {[%clk 0:00:28.8]} 27... Nd5 {[%clk
0:01:55.3]} 28. Be4 {[%clk 0:00:23.2]} 28... Nc3+ {[%clk 0:01:55.4]} 29. Ka1
{[%clk 0:00:11.8]} 29... Rad8 {[%clk 0:01:50.8]} 30. Qf4 {[%clk 0:00:08.9]}
30... Rfe8 {[%clk 0:01:39.8]} 31. Qg4+ {[%clk 0:00:07.6]} 31... Kf8 {[%clk
0:01:39.8]} 32. Qf4 {[%clk 0:00:02.6]} 32... Rxd4 {[%clk 0:01:37.8]} 33. Qxh6+
{[%clk 0:00:02.6]} 33... Ke7 {[%clk 0:01:35]} 34. Qh4+ {[%clk 0:00:02.9]} 34...
Kd7 {[%clk 0:01:32.7]} 35. Bf5+ {[%clk 0:00:01.4]} 35... Kc7 {[%clk 0:01:28.2]}
36. Qxd4 {[%clk 0:00:01.8]} 36... Re1+ {[%clk 0:01:27.6]} 37. Bb1 {[%clk
0:00:02.5]} 37... Rxb1# {[%clk 0:01:27.8]} 0-1